[Event "Superbet Rapid Poland 2022"]
[Site "Warsaw"]
[Date "2022.05.19"]
[Round "1.1"]
[White "So, Wesley"]
[Black "Korobov, Anton"]
[Result "1/2-1/2"]
[ECO "D12"]
[WhiteElo "2766"]
[BlackElo "2671"]
[Annotator "TA"]
[PlyCount "99"]
[EventDate "2022.05.19"]
[EventType "tourn"]
[EventCountry "POL"]
[SourceTitle "playchess.com"]
[Source "ChessBase"]
[SourceQuality "1"]
[TimeControl "1500+10"]

{[%evp 15,99,31,26,0,67,47,61,46,53,78,75,59,62,68,66,66,84,93,103,86,99,73,82,75,74,84,62,19,22,9,39,0,0,0,0,0,0,0,58,45,69,133,102,39,2,12,24,18,130,0,0,0,0,0,0,0,0,0,0,0,0,0,0,0,0,0,0,0,0,0,0,0,0,0,0,0,0,0,0,0,0,0,0,0,0,0]} 1. d4 {[%emt 0:00:07]} Nf6 {[%emt 0:00:10]} 2. c4 {[%emt 0:00:02]} c6 {[%emt 0:00:07]} 3. Nf3 {[%emt 0:00:18]} d5 {[%emt 0:00:02]} 4. e3 {[%emt 0:00:02]} Bf5 {[%emt 0:00:15]} 5. Nc3 {[%emt 0:00:03]} e6 {[%emt 0:00:03]} 6. Nh4 {[%emt 0:00:03]} Be4 {[%emt 0:00:10]} 7. f3 {[%emt 0:00:05]} Bg6 {[%emt 0:00:03]} 8. Qb3 {[%emt 0:00:05]} Qc7 {[%emt 0:00:09]} 9. cxd5 {[%emt 0:00:05] D12: Slav Defence: 3 Nf3 Nf6 4 e3 Bf5.} Nxd5 {[%emt 0:00:50]} (9... cxd5 $11 10. Bd2 (10. Nxg6 hxg6 11. Bd3 Nc6 $11) 10... Nc6) 10. e4 $14 {[%emt 0:00:18]} Nxc3 {[%emt 0:00:11]} 11. bxc3 {[%emt 0:00:03] White is slightly better.} Be7 {[%emt 0:00:07]} 12. Nxg6 {[%emt 0:00:04]} hxg6 {[%emt 0:00:03]} 13. g3 {[%emt 0:00:02]} Nd7 {[%emt 0:00:33][%cal Oh8h2] [#]} 14. Be3 $146 {[%emt 0:00:40]} ({Predecessor:} 14. Kf2 e5 15. Be3 c5 16. dxe5 Nxe5 17. Qb5+ Nc6 18. Rb1 O-O-O 19. Bc4 Bd6 20. Kg2 {1-0 (52) So,W (2772)-Liang,A (2587) chess24.com INT 2021}) 14... O-O {[%emt 0:00:59]} 15. Be2 {[%emt 0:00:55]} c5 {[%emt 0:00:58]} 16. Kf2 {[%emt 0:00:18]} e5 {[%emt 0:00:30]} 17. Rac1 {[%emt 0:00:33]} Rac8 {[%emt 0:00:24]} 18. Rhd1 {[%emt 0:00:10] White is more active.} c4 {[%emt 0:02:30]} 19. Qb2 {[%emt 0:00:25]} a6 {[%emt 0:01:08]} 20. a4 {[%emt 0:00:16] Prevents b5.} Rb8 {[%emt 0:00:31]} 21. dxe5 {[%emt 0:00:53]} b5 {[%emt 0:03:15]} 22. f4 {[%emt 0:01:56]} Nc5 {[%emt 0:00:18]} 23. Bxc5 {[%emt 0:01:19]} Qxc5+ {[%emt 0:01:03]} 24. Kf3 {[%emt 0:00:01]} bxa4 {[%emt 0:00:46]} 25. Qa2 {[%emt 0:00:01][%csl LRa4,LRc4]} a3 {[%emt 0:00:36]} 26. Qxc4 {[%emt 0:00:54]} Qb6 {[%emt 0:01:41]} ({Much less strong is} 26... Rb2 27. Qxc5 Bxc5 28. Bc4 $16) (26... Qc8 $11) 27. Rb1 $1 {[%emt 0:04:42]} Qxb1 {[%emt 0:00:44]} 28. Rxb1 {[%emt 0:00:02]} Rxb1 {[%emt 0:00:02]} 29. Qxa6 {[%emt 0:00:33]} ({White should play} 29. Kg4 $16) 29... Rb3 {[%emt 0:00:21]} 30. Bc4 {[%emt 0:01:27][%csl LRb3,LRg6]} Rxc3+ {[%emt 0:00:02]} 31. Kg4 {[%emt 0:00:02] With the idea Bd5.} Rd8 {[%emt 0:00:52]} (31... Rxc4 $1 $11 {keeps the balance.} 32. Qxc4 Ra8) 32. Kh3 {[%emt 0:06:32]} ({Better is} 32. Bd5 $16) 32... Rxc4 $1 $11 {[%emt 0:03:22] The position is equal.} 33. Qxc4 {[%emt 0:00:03][%mdl 4096] Endgame KQ-KRB} Rd2 {[%emt 0:00:02]} 34. e6 {[%emt 0:00:46]} f5 {[%emt 0:00:57]} 35. exf5 {[%emt 0:03:56]} gxf5 {[%emt 0:00:02]} 36. Qc8+ {[%emt 0:00:40]} Kh7 {[%emt 0:00:12]} 37. Qc3 {[%emt 0:01:53]} a2 {[%emt 0:00:23] [#] Strongly threatening ...Rd5.} 38. Qa5 {[%emt 0:00:01] Prevents Rd5.} Kg6 {[%emt 0:00:41]} 39. g4 {[%emt 0:00:22]} fxg4+ {[%emt 0:00:26]} 40. Kxg4 {[%emt 0:00:01] Qh5+ would kill now. Really sharp!} Rg2+ {[%emt 0:00:04]} 41. Kh3 {[%emt 0:00:03]} Rc2 {[%emt 0:00:33]} 42. Kg4 {[%emt 0:00:42] [#] White threatens Qh5+ and mate.} Rxh2 {[%emt 0:00:20]} 43. Qe5 {[%emt 0:00:26] And now f5+ would win.} Kh6 {[%emt 0:01:11]} 44. Qa5 {[%emt 0:00:26]} Bf6 {[%emt 0:01:01]} 45. e7 {[%emt 0:00:01]} Bxe7 {[%emt 0:00:13]} (45... Rh4+ $2 46. Kg3 Bxe7 47. Qxa2 $16) 46. Qa8 $1 {[%emt 0:00:11] aiming for Qh8+.} Kh7 {[%emt 0:01:05] Against Qh8+. White must now prevent ...Bf6.} (46... Bf6 47. Qh8+ Kg6 48. Qxh2 Bd8 49. Qxa2 Kf6 50. f5 Ke5 51. Qe6+ Kd4 52. Qd6+ Kc4 53. Qxd8) 47. Qe4+ $1 {[%emt 0:00:01]} Kg8 {[%emt 0:00:15]} (47... Kh6 $5 48. Qa8 Bh4 $11) 48. Qa8+ {[%emt 0:00:08]} Kh7 {[%emt 0:00:42] Hoping for ...Bf6.} 49. Qe4+ $1 {[%emt 0:00:01]} Kg8 {[%emt 0:00:24]} (49... Kh6 $5 50. Qa8 Bh4 $11) 50. Qa8+ {[%emt 0:00:02] Weighted Error Value: White=0.09 (flawless) /Black=0.11 (very precise)} 1/2-1/2

[Event "Superbet Rapid Poland 2022"]
[Site "Warsaw"]
[Date "2022.05.19"]
[Round "1.2"]
[White "Anand, Viswanathan"]
[Black "Wojtaszek, Radoslaw"]
[Result "1-0"]
[ECO "C77"]
[WhiteElo "2751"]
[BlackElo "2696"]
[Annotator "TA"]
[PlyCount "71"]
[EventDate "2022.05.19"]
[EventType "tourn"]
[EventCountry "POL"]
[SourceTitle "playchess.com"]
[Source "ChessBase"]
[SourceQuality "1"]
[TimeControl "1500+10"]

{[%evp 16,71,14,10,10,14,18,4,3,0,8,10,9,8,31,22,9,0,9,7,12,10,11,-10,46,47,43,43,43,44,40,3,77,87,149,147,150,125,177,75,60,79,79,79,208,203,227,215,445,433,482,475,478,440,534,526,548,537]} 1. e4 {[%emt 0:00:02] Havasi,G} e5 {[%emt 0:00:01]} 2. Nf3 {[%emt 0:00:03]} Nc6 {[%emt 0:00:02]} 3. Bb5 {[%emt 0:00:04][%cal Bf1b5,Bb5a4,Ba4b3,Bb3a2][%mdl 32]} a6 {[%emt 0:00:02]} 4. Ba4 {[%emt 0:00:02]} Nf6 {[%emt 0:00:02]} 5. O-O {[%emt 0:00:24]} Be7 {[%emt 0:00:03]} 6. d3 {[%emt 0:00:04]} b5 {[%emt 0:00:03]} 7. Bb3 {[%emt 0:00:04]} d6 {[%emt 0:00:04]} 8. a3 {[%emt 0:00:06]} O-O {[%emt 0:00:05]} 9. Nc3 {[%emt 0:00:05]} Rb8 {[%emt 0:00:03] C77: Ruy Lopez: 3...a6 4 Ba4 Nf6, unusual lines.} 10. Be3 {[%emt 0:00:09]} Na5 {[%emt 0:00:06]} 11. Ba2 {[%emt 0:00:17]} c5 {[%emt 0:00:04] The position is equal.} 12. Nd5 {[%emt 0:00:18] [#]} Nxd5 $146 {[%emt 0:00:04]} ({Predecessor:} 12... c4 13. Nxe7+ Qxe7 14. Qd2 Nc6 15. h3 Be6 16. b4 Rfc8 17. c3 cxd3 18. Qxd3 Bxa2 19. Rxa2 {0-1 (41) Leko,P (2708)-Carlsen,M (2850) Reykjavik 2015 CBM 170 [Havasi,G]}) 13. Bxd5 {[%emt 0:00:14]} Bb7 {[%emt 0:00:04]} 14. b4 {[%emt 0:00:38]} Bxd5 {[%emt 0:00:02]} 15. exd5 {[%emt 0:00:19]} Nb7 {[%emt 0:00:02]} 16. Re1 {[%emt 0:01:46]} f5 {[%emt 0:00:44]} 17. bxc5 {[%emt 0:02:52]} dxc5 {[%emt 0:00:02]} (17... f4 18. cxd6 fxe3 19. dxe7 exf2+ 20. Kxf2 Qxe7 21. Kg1 $16) 18. Nxe5 {[%emt 0:03:32][%cal Bf3e5,Be5c6,Bc6e7][%mdl 32]} Qxd5 {[%emt 0:00:04]} 19. Bf4 {[%emt 0:00:12][%cal Oe5c6]} Rbe8 {[%emt 0:06:10]} ({Black should try} 19... Bf6 $11 20. Qf3 Qxf3 21. gxf3 g5) 20. c4 $1 $36 {[%emt 0:03:04][%mdl 2048] White has some pressure.} Qd4 {[%emt 0:00:02]} 21. Nc6 {[%emt 0:02:29][%csl LRd4,LRe7]} Qxf4 {[%emt 0:01:06]} 22. Nxe7+ {[%emt 0:00:06]} Kh8 {[%emt 0:00:24]} 23. Ra2 {[%emt 0:03:08][%cal Ba1a2,Ba2e2,Be2e6,Be6d6][%mdl 32]} (23. Re6 $5 {[%cal Rd1h5]} Nd8 24. Nd5 $14) 23... Nd6 {[%emt 0:02:47]} (23... bxc4 $11 {remains equal.} 24. Rae2 Rd8) 24. Rae2 $1 $16 {[%emt 0:00:27] Black must now prevent Re6.} Qg5 {[%emt 0:06:33] [#]} (24... Qd4 $142) 25. Re6 $1 {[%emt 0:03:25] And now Qe2 would win.} bxc4 {[%emt 0:01:45]} 26. g3 {[%emt 0:00:07] White is more active.} (26. Rxd6 $6 Rxe7 27. dxc4 Rxe1+ 28. Qxe1 Qf4 $14) 26... cxd3 {[%emt 0:05:31] [#] Hoping for ...d2.} 27. f4 {[%emt 0:00:30]} (27. h4 $1 $18 {[%cal Rh4g5] is the precise move to win.} Qg4 28. Qxg4 fxg4 29. Rxd6) 27... Qg4 {[%emt 0:00:03]} 28. Qxg4 {[%emt 0:00:02]} fxg4 {[%emt 0:00:02]} 29. Rxd6 {[%emt 0:00:02]} c4 {[%emt 0:00:03] A mistake that costs the game.} (29... Rd8 $16 30. Rxa6 g6) 30. Rd4 $18 {[%emt 0:00:30]} g6 {[%emt 0:02:38]} 31. Kf2 {[%emt 0:01:29] Threatens to win with Nc6.} ({Worse is} 31. Rxc4 d2 32. Rd1 Rxe7 33. Rxd2 Re3 $11) 31... Kg7 $2 {[%emt 0:00:20]} (31... g5 32. Nc6 (32. Rxc4 d2 $11) 32... gxf4 33. gxf4 Rxe1 34. Kxe1 c3) 32. Nc6 {[%emt 0:00:18] White is clearly winning.} ({Stronger than} 32. Rxc4 d2 33. Rd1 Rxe7 $11) 32... g5 {[%emt 0:01:12]} 33. Rxc4 {[%emt 0:00:30]} gxf4 {[%emt 0:00:12]} 34. gxf4 {[%emt 0:00:04]} Rxe1 {[%emt 0:00:12]} 35. Kxe1 {[%emt 0:00:02]} Rf6 {[%emt 0:00:03]} 36. Ne5 {[%emt 0:00:05][%csl LRd3,LRg4] Weighted Error Value: White=0.07 (flawless) /Black=0.36} 1-0

[Event "Superbet Rapid Poland 2022"]
[Site "Warsaw"]
[Date "2022.05.19"]
[Round "1.3"]
[White "Shevchenko, Kirill"]
[Black "Rapport, Richard"]
[Result "0-1"]
[ECO "C02"]
[WhiteElo "2644"]
[BlackElo "2776"]
[Annotator "TA"]
[PlyCount "62"]
[EventDate "2022.05.19"]
[EventType "tourn"]
[EventCountry "POL"]
[SourceTitle "playchess.com"]
[Source "ChessBase"]
[SourceQuality "1"]
[TimeControl "1500+10"]

{[%evp 14,62,22,18,18,21,28,23,19,31,44,32,41,0,0,0,4,0,26,18,18,-63,-78,-58,-66,-154,-161,-164,-141,-250,-247,-598,-607,-598,-598,-687,-682,-679,-668,-667,-491,-658,-656,-29988,-29989,-29989,-29990,-29989,-12836,-12837,-12829]} 1. e4 {[%emt 0:00:01]} e6 {[%emt 0:00:07]} 2. d4 {[%emt 0:00:05]} d5 {[%emt 0:00:03]} 3. e5 {[%emt 0:00:02]} c5 {[%emt 0:00:01]} 4. c3 {[%emt 0:00:02]} Bd7 {[%emt 0:00:02]} 5. Nf3 {[%emt 0:00:15]} Nc6 {[%emt 0:00:02]} 6. Be2 {[%emt 0:00:12]} Nge7 {[%emt 0:00:04]} 7. O-O {[%emt 0:00:19]} Ng6 {[%emt 0:00:11]} 8. g3 {[%emt 0:01:45]} f6 {[%emt 0:00:35] C02: French: Advance Variation.} 9. exf6 {[%emt 0:06:29]} Qxf6 {[%emt 0:00:05]} 10. Be3 {[%emt 0:00:47]} cxd4 {[%emt 0:00:08] White has an edge.} 11. Nxd4 {[%emt 0:00:02]} Bd6 {[%emt 0:00:55]} 12. Nb5 {[%emt 0:00:27]} Bb8 {[%emt 0:00:22] [#]} 13. c4 $146 {[%emt 0:00:50]} ({Predecessor:} 13. f4 a6 14. Nd4 Ba7 15. Qd2 h5 16. Nxc6 Bxe3+ 17. Qxe3 Bxc6 18. f5 Ne5 19. Nd2 {½-½ (32) Giuliani,C (2225)-Vieth,M (2035) LSS email 2019}) 13... a6 {[%emt 0:01:30]} (13... Qxb2 $2 14. N1c3 Qb4 15. cxd5 $18) 14. cxd5 {[%emt 0:04:30]} exd5 {[%emt 0:01:38]} 15. N1c3 {[%emt 0:02:48]} axb5 {[%emt 0:00:14]} (15... Nge7 $5 {[%cal Ra6b5]}) 16. Nxd5 {[%emt 0:00:01]} Qf7 {[%emt 0:01:28] Strongly threatening ...Be6.} (16... Qxb2 $2 17. Nb6 O-O 18. Nxa8 $18 (18. Qxd7 Nge5 $18)) 17. Bc5 {[%emt 0:00:58]} (17. Nb6 $11 Ra6 18. Bxb5 Rxb6 19. Bxb6) 17... Be6 $1 $15 {[%emt 0:00:16]} 18. Re1 {[%emt 0:01:41]} Be5 {[%emt 0:01:30]} (18... Bxd5 19. Bc4+ Be5 20. Bxd5 $14) 19. Nb6 {[%emt 0:01:54]} (19. Nb4 $1 $15 Nxb4 20. Bxb4) 19... Rd8 $17 {[%emt 0:00:04]} 20. Qc2 {[%emt 0:00:42]} Nge7 {[%emt 0:01:41]} (20... Bf5 21. Qc1 Be6 22. Bxb5 $15) 21. Bxb5 {[%emt 0:00:38]} (21. Bxe7 $17 {was worth a try.} Bf5 22. Qc1 Qxe7 23. Bxb5) 21... O-O $1 $19 {[%emt 0:00:03] Threatens to win with ...Nd4.} 22. Rad1 {[%emt 0:01:49]} (22. Bxe7 $2 Nd4 23. Qe4 Nf3+ 24. Kh1 Qxe7 $19) (22. Bc4) 22... Nd4 {[%emt 0:07:03]} 23. Rxd4 {[%emt 0:02:06]} Bxd4 {[%emt 0:00:01]} 24. Rxe6 {[%emt 0:00:15]} Bxc5 {[%emt 0:00:02][%mdl 64] Deflection} (24... Qxe6 25. Bc4 Bxf2+ 26. Bxf2 $17) 25. Qxc5 {[%emt 0:00:03]} Rd1+ {[%emt 0:00:02]} ({And not} 25... Qxe6 26. Bc4 Nd5 27. Bxd5 Rxd5 28. Nxd5 $17 (28. Qxd5 Qxd5 29. Nxd5 Rd8 $17)) 26. Kg2 {[%emt 0:00:00]} Qf3+ $1 {[%emt 0:00:03]} ({Stronger than} 26... Qxe6 27. Bc4 Nd5 28. Bxd5 Rxd5 29. Nxd5 $15 (29. Qxd5 Qxd5+ 30. Nxd5 Rd8 $17)) 27. Kh3 {[%emt 0:00:01]} Nd5 {[%emt 0:00:17] ( -> ...Qh5+)} 28. Qc4 {[%emt 0:00:54]} Nf4+ {[%emt 0:00:47]} 29. Qxf4 {[%emt 0:00:02]} Rxf4 {[%emt 0:00:04]} 30. Be2 {[%emt 0:00:01] [#]} Rh4+ $3 {[%emt 0:00:35]} 31. Kxh4 {[%emt 0:00:01]} Rd4+ {[%emt 0:00:01] Weighted Error Value: White=0.61/Black=0.17 (very precise)} 0-1

[Event "Superbet Rapid Poland 2022"]
[Site "Warsaw"]
[Date "2022.05.19"]
[Round "1.4"]
[White "Aronian, Levon"]
[Black "Caruana, Fabiano"]
[Result "1-0"]
[ECO "C27"]
[WhiteElo "2765"]
[BlackElo "2786"]
[Annotator "TA"]
[PlyCount "89"]
[EventDate "2022.05.19"]
[EventType "tourn"]
[EventCountry "POL"]
[SourceTitle "playchess.com"]
[Source "ChessBase"]
[SourceQuality "1"]
[TimeControl "1500+10"]

{[%evp 9,89,0,0,0,0,-6,0,0,0,0,0,0,8,2,17,13,14,8,17,18,25,17,16,0,148,150,155,104,131,114,116,118,109,124,99,47,64,18,129,111,94,113,350,444,277,214,308,307,295,291,287,273,216,118,624,616,964,1037,968,945,902,1022,1088,1043,1093,1057,1058,1024,1020,992,1111,1008,1356,1330,2932,2461,29975,29975,29973,29965,29951,29949]} 1. e4 {[%emt 0:00:02]} e5 {[%emt 0:00:04]} 2. Bc4 {[%emt 0:00:02]} Nf6 {[%emt 0:00:21]} 3. d3 {[%emt 0:00:02]} Bc5 {[%emt 0:00:02]} 4. Nc3 {[%emt 0:00:05]} O-O {[%emt 0:00:23]} 5. f4 {[%emt 0:00:14]} exf4 {[%emt 0:02:46]} 6. Bxf4 {[%emt 0:00:14] C27: Vienna Game: 2...Nf6 3 Bc4 Nxe4.} c6 {[%emt 0:01:02]} 7. d4 $5 {[%emt 0:01:08][%mdl 4] An interesting side line.} Bb4 {[%emt 0:00:40]} 8. e5 {[%emt 0:00:06] The position is equal.} d5 {[%emt 0:01:02]} 9. Bd3 {[%emt 0:00:33]} Ne4 {[%emt 0:03:12]} 10. Bxe4 {[%emt 0:00:03]} dxe4 {[%emt 0:00:02]} 11. Nge2 {[%emt 0:00:02]} Bg4 {[%emt 0:01:02]} 12. O-O {[%emt 0:00:04]} Bxc3 {[%emt 0:01:25]} 13. bxc3 {[%emt 0:00:02]} Qd5 {[%emt 0:00:10] [#]} 14. h3 $146 {[%emt 0:01:00][%cal Bh2h3,Bh3h4,Bh4h5][%mdl 32]} ({Predecessor:} 14. Qe1 Bh5 15. Ng3 Bg6 16. h4 f5 17. Bg5 Qe6 18. h5 Be8 19. Qf2 Nd7 20. Qf4 g6 21. Rf2 {1-0 (30) Kalata,P (2182)-Starzec,J (2051) Slovakia 2006}) 14... Bh5 {[%emt 0:00:17]} 15. g4 {[%emt 0:00:26]} Bg6 {[%emt 0:00:01]} 16. h4 {[%emt 0:00:06] Strongly threatening h5.} e3 {[%emt 0:02:19]} (16... Qe6 $11 {keeps the balance.}) 17. h5 $16 {[%emt 0:00:52]} Be4 {[%emt 0:00:02] White must now prevent ...Bh1.} 18. Bxe3 {[%emt 0:00:07]} ({White should try} 18. Ng3 $1) 18... Bf3 {[%emt 0:02:22]} 19. Qe1 {[%emt 0:03:00]} Qe4 {[%emt 0:01:09]} 20. Nf4 {[%emt 0:00:15]} Nd7 {[%emt 0:01:17]} 21. Qf2 {[%emt 0:00:18]} Bxg4 {[%emt 0:00:07]} 22. Rae1 {[%emt 0:00:02]} (22. Qg3 $16) 22... Be6 {[%emt 0:00:39]} 23. Qh2 {[%emt 0:01:20]} (23. Kh2 $14) 23... Nb6 {[%emt 0:02:21] [#]} (23... h6 $11) 24. Bc1 $1 {[%emt 0:00:48]} Qf5 {[%emt 0:00:02]} 25. Rf2 {[%emt 0:00:06]} Bxa2 $2 {[%emt 0:01:08]} (25... Kh8 $16) 26. h6 $18 {[%emt 0:00:26] Hoping for Nh5.} g6 {[%emt 0:01:16] Inhibits Nh5.} 27. Ba3 {[%emt 0:00:15] Active counter play!} Rfe8 {[%emt 0:00:30] [#]} (27... Qg4+ $142 28. Rg2 Qf3 29. Bxf8 Rxf8) 28. Nxg6 $1 {[%emt 0:00:08][%mdl 512] Chess con chili.} Qxg6+ {[%emt 0:00:01]} 29. Rg2 {[%emt 0:00:01]} Re6 {[%emt 0:00:07][%cal Oa2d5]} 30. Rxg6+ {[%emt 0:00:02]} Rxg6+ {[%emt 0:00:01] [#]} 31. Kf2 $1 {[%emt 0:00:02] Threatens to win with Rg1.} Nd5 $2 {[%emt 0:02:17][%mdl 8192]} (31... a5 $16 32. Rg1 Nd7) 32. Rg1 {[%emt 0:00:24]} Nxc3 {[%emt 0:01:32]} 33. Rxg6+ {[%emt 0:00:14]} hxg6 {[%emt 0:00:02]} 34. h7+ {[%emt 0:00:13]} Kh8 {[%emt 0:00:04]} 35. Be7 {[%emt 0:00:06][%cal Re7f6]} Ne4+ {[%emt 0:00:14]} 36. Ke3 {[%emt 0:00:09]} Re8 {[%emt 0:00:05] [#]} 37. Qh6 $1 {[%emt 0:00:11] White threatens Bf8 and mate.} Rxe7 {[%emt 0:00:34]} 38. Qf8+ {[%emt 0:00:01]} Kxh7 {[%emt 0:00:02]} 39. Qxe7 {[%emt 0:00:02]} Nc3 {[%emt 0:00:25]} 40. Qxb7 {[%emt 0:00:26]} Bd5 {[%emt 0:00:09]} 41. Kd3 {[%emt 0:00:24]} c5 {[%emt 0:00:16]} 42. Qxa7 {[%emt 0:00:10]} cxd4 {[%emt 0:00:02]} 43. Qxd4 {[%emt 0:00:02] White mates.} Na2 {[%emt 0:00:02]} 44. Kd2 {[%emt 0:00:18]} Be6 {[%emt 0:00:01]} 45. Qa4 {[%emt 0:00:05] Weighted Error Value: White=0.08 (flawless) /Black=0.79} 1-0

[Event "Superbet Rapid Poland 2022"]
[Site "Warsaw"]
[Date "2022.05.19"]
[Round "1.5"]
[White "Duda, Jan-Krzysztof"]
[Black "Gavrilescu, David"]
[Result "1-0"]
[ECO "C13"]
[WhiteElo "2750"]
[BlackElo "2518"]
[Annotator "TA"]
[PlyCount "69"]
[EventDate "2022.05.19"]
[EventType "tourn"]
[EventCountry "POL"]
[SourceTitle "playchess.com"]
[Source "ChessBase"]
[SourceQuality "1"]
[TimeControl "1500+10"]

{[%evp 14,69,35,31,37,11,4,11,18,15,20,0,0,0,0,0,0,0,0,0,0,0,0,0,60,71,68,60,54,42,48,50,197,200,202,200,197,192,201,176,219,189,216,216,262,271,344,344,337,337,591,585,576,456,433,408,448,426]} 1. e4 {[%emt 0:00:01]} e6 {[%emt 0:00:14]} 2. d4 {[%emt 0:00:02]} d5 {[%emt 0:00:05]} 3. Nc3 {[%emt 0:00:03]} Nf6 {[%emt 0:00:09]} 4. Bg5 {[%emt 0:00:04]} dxe4 {[%emt 0:00:10]} 5. Nxe4 {[%emt 0:00:03]} Be7 {[%emt 0:00:12]} 6. Bxf6 {[%emt 0:00:09]} gxf6 {[%emt 0:00:10]} 7. Nf3 {[%emt 0:00:04]} f5 {[%emt 0:00:15]} 8. Nc3 {[%emt 0:00:05]} a6 {[%emt 0:00:11] C13: French: Classical System: 4 Bg5 Be7, Alekhine-Chatard Attack.} 9. Qe2 {[%emt 0:00:11]} b5 {[%emt 0:00:06]} 10. O-O-O {[%emt 0:00:04]} b4 {[%emt 0:00:19] The position is equal.} 11. Na4 {[%emt 0:00:05]} Qd5 {[%emt 0:00:13]} 12. c4 {[%emt 0:02:06]} Qa5 {[%emt 0:00:16]} 13. b3 {[%emt 0:00:03]} Bd7 {[%emt 0:00:22]} 14. d5 $5 {[%emt 0:00:03][%mdl 4] A promising side line.} Bxa4 {[%emt 0:07:26]} 15. bxa4 {[%emt 0:00:04]} Qxa4 {[%emt 0:04:44] [#] Strongly threatening ...b3.} 16. dxe6 {[%emt 0:00:03] [#]} b3 $146 {[%emt 0:01:06]} ({Predecessor:} 16... Nc6 17. Qb2 O-O 18. exf7+ Rxf7 19. Qb3 Qxb3 20. axb3 Bc5 21. Kc2 Kh8 22. g3 Bxf2 {½-½ (31) Pineda,J (2334)-Saitou,A (2243) ICCF email 2016}) 17. exf7+ $1 {[%emt 0:00:04]} ({Don't go for} 17. Qb2 $2 Ba3 18. axb3 Qxb3 19. Qxa3 Qxa3+ $19) 17... Kxf7 {[%emt 0:00:58]} 18. c5 $1 {[%emt 0:00:42] And now Qc4+ would win. Really sharp!} bxa2 {[%emt 0:04:07]} ({Resist} 18... Qxa2 19. Qxa2 bxa2 20. Bc4+ Kg7 21. Bxa2 $16) ({Better is} 18... Qa3+ $1 $11 19. Qb2 Qxc5+ 20. Kb1 bxa2+ 21. Qxa2+ Kg7) 19. Qc4+ $14 {[%emt 0:00:52]} Qxc4+ {[%emt 0:00:03]} 20. Bxc4+ {[%emt 0:00:02]} Kg7 {[%emt 0:00:07]} 21. Bxa2 {[%emt 0:00:12] Black must now prevent Nd4.} Bxc5 {[%emt 0:00:39]} 22. Rhe1 $36 {[%emt 0:02:14][%mdl 2048] Inhibits Re8. Hoping for Nd4. White fights for an advantage.} Rf8 {[%emt 0:05:13] [#] A mistake that costs the game.} ({Black should try} 22... a5 $14) 23. Ng5 $1 $18 {[%emt 0:01:03] Ne6+ is the strong threat.} Ba3+ {[%emt 0:00:36]} 24. Kc2 {[%emt 0:00:38]} Nc6 {[%emt 0:01:15]} 25. Ne6+ {[%emt 0:00:52][%mdl 64] Deflection, Double Attack} Kh8 {[%emt 0:00:02]} 26. Nxf8 {[%emt 0:00:15]} Bxf8 {[%emt 0:00:03]} 27. Be6 {[%emt 0:01:37]} Nb4+ {[%emt 0:00:28]} 28. Kc3 {[%emt 0:00:22]} Rb8 {[%emt 0:00:02]} 29. Rd7 {[%emt 0:02:13]} Nd5+ {[%emt 0:00:11]} 30. Kc2 {[%emt 0:00:16]} ({Less strong is} 30. Rxd5 Bb4+ 31. Kd4 Bxe1 $14) 30... Nb4+ {[%emt 0:00:07]} 31. Kd1 {[%emt 0:00:14]} Nc6 $2 {[%emt 0:00:20]} (31... Rb6 {was necessary.} 32. Bxf5 Rd6+ 33. Rxd6 Bxd6 34. Re8+ Kg7) 32. Bxf5 {[%emt 0:00:08]} Bg7 {[%emt 0:00:06]} 33. Rxc7 {[%emt 0:00:49]} Rd8+ {[%emt 0:00:05]} 34. Bd7 {[%emt 0:00:34]} Ne5 {[%emt 0:00:18]} 35. Rc8 {[%emt 0:00:03] Weighted Error Value: White=0.08 (flawless) /Black=0.27 (precise)} 1-0